Cogmind - Beta 15 @@@ ROGUE MODE // 2025.08.23 @ 12:49:43 Player: Minty Result: Smashed by cave-in Performance ------------- Evolutions (3) 1500 Regions Visited (10) 2000 Robots Destroyed (102) 510 Value Destroyed (4021) 4021 Prototype IDs (41) 820 Alien Tech Used (0) 0 Bonus (1069) 1069 TOTAL SCORE: 9920 Bonus ------- High Alert Combat Kills 592 Follower Combat Kills 105 Entered Garrisons 200 Aligned with FarCom 300 Friendly Fire -128 Cogmind --------- Core Integrity 0/700 Matter 111/300 Energy 170/170 System Corruption 5% Temperature Cool (0) Movement Rolling (115) Ox1 Location -7/Factory Parts ------- > --- POWER (1) -------- Light Neutrino Core > --- PROPULSION (4) --- Improved Heavy Treads Armored Huge Wheel > --- UTILITY (6) ------ Large Storage Unit Advanced Targeting Computer Experimental Melee Analysis Suite Experimental Melee Analysis Suite Weapon Cycler Improved Weapon Shielding > --- WEAPON (2) ------- Improved Spread Laser Vibroblade > --- INVENTORY (15) --- Light Neutrino Core Light Neutrino Core Heavy Antimatter Reactor Heavy Antimatter Reactor Gravmag System Force Rifle Advanced Variable Charge Gun Cooled Plasma Cannon Cooled Plasma Cannon XL Autogun Array Peak State ------------ > --- POWER ------------ Light Neutrino Core > --- PROPULSION ------- Improved Heavy Treads Armored Huge Wheel > --- UTILITY ---------- Large Storage Unit Advanced Targeting Computer Experimental Melee Analysis Suite Experimental Melee Analysis Suite Weapon Cycler Improved Weapon Shielding > --- WEAPON ----------- Improved Spread Laser Vibroblade > --- INVENTORY -------- Improved Deuterium Engine Light Neutrino Core Light Neutrino Core Heavy Antimatter Reactor Heavy Antimatter Reactor Gravmag System Force Rifle Advanced Variable Charge Gun Cooled Plasma Cannon Cooled Plasma Cannon XL Autogun Array [Rating: 79] Favorites ----------- Power Light Ion Engine Engine Light Ion Engine Power Core Micro Nuclear Core Reactor Heavy Antimatter Reactor Propulsion Light Treads Treads Light Treads Leg Carbon-fiber Leg Wheel Armored Huge Wheel Hover Unit Gravmag System Flight Unit Flying Fortress v7 Utility Large Storage Unit Device Improved Heat Sink Storage Large Storage Unit Processor Advanced Targeting Computer Hackware Hacking Suite Protection Light Armor Plating Weapon Light Cannon Energy Gun Heavy EM Shotgun Energy Cannon Cooled Plasma Cannon Ballistic Gun Precision Assault Rifle Ballistic Cannon Light Cannon Launcher Proton Missile Launcher Slashing Weapon Vibroblade Build | -11 -10 -10 -10 -9 -8 -7 -7 -7 -7 -7 ------- Run | Yrd Mat Min Exi Min Mat Fac Was Fac Gar Fac Slots Evolved 6 | . . . . . 4 2 . . . . Power . | . . . . . . . . . . . Propulsion 2 | . . . . . 2 . . . . . Utility 4 | . . . . . 2 2 . . . . Weapon . | . . . . . . . . . . . Parts Attached 84 | . 9 . 2 1 15 10 2 3 18 24 Power 12 | . 2 . . . 2 . . . 3 5 Engine 4 | . 2 . . . . . . . . 2 Core 7 | . . . . . 2 . . . 3 2 Reactor 1 | . . . . . . . . . . 1 Propulsion 20 | . 3 . 2 . 6 . . . 6 3 Treads 14 | . 3 . 2 . 4 . . . 4 1 Leg 3 | . . . . . 1 . . . 2 . Wheel 1 | . . . . . . . . . . 1 Hover 1 | . . . . . . . . . . 1 Flight 1 | . . . . . 1 . . . . . Utility 26 | . 2 . . . 4 4 1 2 4 9 Device 6 | . . . . . 1 . 1 . 3 1 Storage 3 | . 1 . . . . . . 1 . 1 Processor 7 | . . . . . 1 1 . . 1 4 Hackware 2 | . . . . . . 1 . 1 . . Protection 8 | . 1 . . . 2 2 . . . 3 Artifact . | . . . . . . . . . . . Weapon 26 | . 2 . . 1 3 6 1 1 5 7 Energy Gun 8 | . 1 . . . 3 1 . . . 3 Energy Cannon 1 | . . . . . . . . . . 1 Ballistic Gun 8 | . . . . . . 3 1 1 3 . Ballistic Cannon 6 | . 1 . . 1 . 2 . . 1 1 Launcher 2 | . . . . . . . . . 1 1 Special Weapon . | . . . . . . . . . . . Impact Weapon . | . . . . . . . . . . . Slashing Weapon 1 | . . . . . . . . . . 1 Piercing Weapon . | . . . . . . . . . . . Special Melee Weapon . | . . . . . . . . . . . Unidentified Prototypes 13 | . . . . . 1 3 . . . 9 Parts Lost 16 | . 1 . . . . . 1 . 5 9 Power 3 | . 1 . . . . . . . 1 1 Propulsion 6 | . . . . . . . . . 2 4 Utility 5 | . . . . . . . . . 1 4 Weapon 2 | . . . . . . . 1 . 1 . Highest Loss Streak 5 | . 1 . . . . . 1 . 3 5 To Critical Strikes 1 | . . . . . . . . . 1 . Average Backups 8 | 6 6 11 11 9 8 11 8 2 6 8 Power 2 | 1 1 2 4 5 4 1 . . . 1 Propulsion 1 | 4 3 7 4 1 1 2 . . . . Utility 2 | . . 2 2 2 2 5 4 . 2 2 Weapon 2 | 1 . . . 1 1 2 2 2 3 4 Tool/Special . | . . . . . . . . . . . Unused Backups 46 | . 6 . 4 . 4 2 8 . 9 13 Power 11 | . . . . . 4 1 1 . 1 4 Propulsion 8 | . 4 . 3 . . . 1 . . . Utility 19 | . 2 . 1 . . 1 6 . 6 3 Weapon 7 | . . . . . . . . . 2 5 Tool/Special 1 | . . . . . . . . . . 1 Average Slot Usage (%) 88 | . 98 100 99 100 91 74 69 70 79 85 Engine 4 | . 13 14 14 14 2 . . . . 1 Core 4 | . . . . . 6 7 7 7 6 5 Treads 18 | . 24 28 27 28 26 . . . 6 19 Leg 1 | . 2 . . . 3 . . . 4 . Flight 1 | . . . . . . 6 7 7 1 . Device 8 | . . . . . 7 6 12 15 14 15 Storage 9 | . 14 14 14 14 9 7 4 5 7 6 Processor 7 | . . . . . 4 7 7 7 12 14 Hackware 2 | . . . . . . 6 7 11 9 1 Protection 9 | . 13 14 14 14 12 14 7 . . 5 Energy Gun 7 | . 13 14 14 9 8 12 . . . 2 Ballistic Gun 4 | . 10 . . . . 2 13 15 13 . Ballistic Cannon 5 | . 3 14 14 18 9 . . . . 4 Peak Build Rating 79 | 6 8 8 16 16 43 70 70 67 67 79 Average Rating 36 | 6 7 8 12 15 30 67 66 65 44 54 On Entrance 30 | 6 6 8 8 16 16 38 70 63 65 41 Naked Turns . | . . . . . . . . . . . Heaviest Build 60 | 11 31 31 31 32 40 44 44 28 40 60 Greatest Support 89 | 20 40 40 40 40 89 50 50 50 80 80 Greatest Overweight (x) 6 | . 1 . . . 1 . . . 6 2 Average Overweight (x) . | . . . . . . . . . . . Largest Inventory Capacity 15 | 8 15 15 15 15 15 15 15 10 10 15 Average Capacity 13 | 8 14 15 15 15 15 15 11 9 10 14 Most Carried 15 | 6 12 11 15 15 15 15 15 7 10 15 Average Carried 12 | 6 6 11 14 15 14 14 11 5 9 12 Final Capacity 15 | 8 15 15 15 15 15 15 5 10 10 15 Final Carried 15 | 6 11 11 15 15 15 15 5 7 10 13 Class Distribution -------------------- 66% | Mutant 28% | Scavenger-Mutant 4% | Hacker-Mutant Dominant Class ---------------- Mutant | -10/Materials Mutant | -10/Mines Mutant | -10/Exiles Mutant | -9/Mines Mutant | -8/Materials Mutant | -7/Factory Mutant | -7/Waste Mutant | -7/Factory Scavenger-Mutant | -7/Garrison Scavenger-Mutant | -7/Factory Resources | -11 -10 -10 -10 -9 -8 -7 -7 -7 -7 -7 ----------- Run | Yrd Mat Min Exi Min Mat Fac Was Fac Gar Fac Matter Collected 2355 | 200 190 . . 25 340 160 . 10 755 675 Remotely . | . . . . . . . . . . . Salvage Created 3373 | . 305 . . . 738 290 . 10 760 1270 Parts 209 | . 12 . . . 29 16 . 2 41 109 Haulers Intercepted 5 | . 1 . . . . 2 . . . 2 Recyclers Shooed . | . . . . . . . . . . . Parts Field Recycled . | . . . . . . . . . . . Retrieved Matter . | . . . . . . . . . . . Parts Self-Destructed . | . . . . . . . . . . . Prevented . | . . . . . . . . . . . Kills | -11 -10 -10 -10 -9 -8 -7 -7 -7 -7 -7 ------- Run | Yrd Mat Min Exi Min Mat Fac Was Fac Gar Fac Combat Hostiles Destroyed 69 | . 6 . . . 14 2 . . 20 27 Melee 4 | . . . . . 2 . . . . 2 Guns 27 | . 3 . . . 5 2 . . 16 1 Cannons 22 | . 3 . . . 5 . . . . 14 AOE 15 | . . . . . 2 . . . 4 9 Classes Destroyed 14 | . 3 . . . 3 1 . 1 4 2 Worker 10 | . . . . . . 3 . . . 7 Builder 13 | . 1 . . . 1 . . . . 11 Hauler 5 | . 1 . . . . 2 . . . 2 Recycler 2 | . . . . . 1 . . . . 1 Operator 1 | . . . . . . . . 1 . . Watcher 1 | . . . . . 1 . . . . . Swarmer 17 | . . . . . . . . . 12 5 Grunt 28 | . 6 . . . 11 2 . . 2 7 Brawler 2 | . . . . . . . . . 1 1 Protector 1 | . . . . . . . . . . 1 Sentry 5 | . . . . . 4 . . . 1 . Specialist 4 | . . . . . . . . . 2 2 Hunter 4 | . . . . . . . . . 2 2 Programmer 9 | . . . . . . . . . . 9 Best Kill Streak 17 | . 3 . . . 3 2 . 1 8 17 Combat Bots Only 9 | . 3 . . . 3 1 . . 8 9 Max Kills in Single Turn 6 | . 1 . . . 2 2 . 1 3 6 Gunslinging 1 | . . . . . . . . . 1 . Exploded 3 | . . . . . 1 . . . 3 3 Melee 1 | . . . . . 1 . . . . 1 Uniques/NPCs Destroyed . | . . . . . . . . . . . Combat | -11 -10 -10 -10 -9 -8 -7 -7 -7 -7 -7 -------- Run | Yrd Mat Min Exi Min Mat Fac Was Fac Gar Fac Hostile Shots Fired 465 | . 20 . . . 52 63 5 14 148 163 Missed 199 | . 6 . . . 20 39 3 7 59 65 Hits 266 | . 14 . . . 32 24 2 7 89 98 Melee 2 | . . . . . . . 2 . . . Projectile 264 | . 14 . . . 32 24 . 7 89 98 AOE 3 | . . . . . . . . . . 3 Critical Strikes 10 | . 1 . . . 2 1 1 . 2 3 Actively Blocked 1 | . . . . . . 1 . . . . Damage Taken 4509 | . 174 . . . 544 244 113 108 1432 1894 Core 847 | . 26 . . . 66 20 . 32 249 454 Absorbed by Shields . | . . . . . . . . . . . Redirected to Shielding 417 | . . . . . 9 82 . . . 326 Regen/Repaired (Parts) 62 | . . . . . . 32 . . . 30 Core Remaining (%) 92 | 100 . . . 89 88 . . . . . Volleys Fired 220 | . 33 . . . 39 21 . 1 60 66 Largest 2 | . 2 . . . 2 2 . 1 2 2 Hottest 105 | . 80 . . . 100 105 . 28 67 80 Shots Fired 375 | . 66 . . . 78 41 . 1 119 70 Gun 255 | . 52 . . . 38 40 . 1 117 7 Cannon 107 | . 14 . . . 40 1 . . . 52 Launcher 13 | . . . . . . . . . 2 11 Special . | . . . . . . . . . . . Kinetic 266 | . 33 . . . 40 23 . 1 117 52 Thermal 40 | . 33 . . . . . . . . 7 Explosive 3 | . . . . . . . . . . 3 Electromagnetic 66 | . . . . . 38 18 . . 2 8 Robot Hit Streak 20 | . 10 . . . 12 20 . 2 9 17 Robot Miss Streak 6 | . 4 . . . 3 2 . . 4 6 Penetration Max 1 | . . . . . . . . . . 1 Secondary Targets 4 | . 1 . . . . . . . 3 . Max Gunslinging Chain 1 | . 1 . . . . . . . 1 . Shots Hit Robots 241 | . 41 . . . 57 24 . 1 60 58 Core Hits 186 | . 15 . . 1 34 10 . 1 33 92 Critical Kills 2 | . . . . . . . . . 2 . Critical Parts Destroyed . | . . . . . . . . . . . Critical Strikes 13 | . 4 . . . 2 . . . 2 5 Burn 3 | . 3 . . . . . . . . . Destroy 2 | . . . . . . . . . 2 . Blast 8 | . 1 . . . 2 . . . . 5 Melee Attacks 13 | . . . . . . . . . . 13 Impact . | . . . . . . . . . . . Slashing 13 | . . . . . . . . . . 13 Piercing . | . . . . . . . . . . . Sneak Attacks 1 | . . . . . . . . . . 1 Combat Hostiles . | . . . . . . . . . . . Follow-up Attacks . | . . . . . . . . . . . Damage Inflicted 9877 | . 526 . . 6 1198 535 . 19 1420 6173 Guns 2884 | . 338 . . . 553 535 . 19 1287 152 Cannons 3658 | . 160 . . . 450 . . . . 3048 Explosions 2843 | . . . . . 166 . . . 133 2544 Melee 415 | . . . . . . . . . . 415 Ramming 77 | . 28 . . 6 29 . . . . 14 Kinetic 5316 | . 234 . . . 450 278 . 19 1287 3048 Thermal 615 | . 264 . . . 166 . . . . 185 Explosive 1309 | . . . . . . . . . . 1309 Electromagnetic 2145 | . . . . . 553 257 . . 133 1202 Impact . | . . . . . . . . . . . Slashing 415 | . . . . . . . . . . 415 Piercing . | . . . . . . . . . . . Highest Corruption 5 | . . . . . 3 1 1 1 1 5 Average Corruption 2 | . . . . . 3 1 1 1 1 2 Corruption Purged . | . . . . . . . . . . . Corruption Blocked . | . . . . . . . . . . . Effects 28 | . . . . . 10 . . . 7 11 Message Errors 5 | . . . . . 3 . . . 1 1 Matter Fused 7 | . . . . . 1 . . . 4 2 Heat Flow Errors 4 | . . . . . 1 . . . . 3 Energy Discharges 6 | . . . . . 3 . . . . 3 Data Loss (minor) 2 | . . . . . 1 . . . . 1 Misfires 1 | . . . . . . . . . . 1 Alerts 3 | . . . . . 1 . . . 2 . Overload Shots . | . . . . . . . . . . . Overflow Damage 639 | . . . . . 8 . . . . 631 Projectiles 588 | . . . . . . . . . . 588 Explosions 44 | . . . . . 8 . . . . 36 Melee 7 | . . . . . . . . . . 7 Knockbacks 18 | . 2 . . . 7 . . . . 9 Impact 1 | . . . . . 1 . . . . . Kinetic 16 | . 2 . . . 6 . . . . 8 Secondary 1 | . . . . . . . . . . 1 Self-Inflicted Damage 90 | . . . . . 68 . . . . 22 Shots 4 | . . . . . 2 . . . . 2 Rammed 12 | . 2 . . 2 7 . . . . 1 Targets Rammed 17 | . 3 . . 2 9 . . . . 3 Kicked 1 | . 1 . . . . . . . . . Crushed 4 | . . . . . 2 . . . . 2 Highest Temperature 258 | . 258 . . . 123 239 . . 70 234 Average Temperature 55 | . 70 . . . 19 41 . . 17 59 Received Heat Transfer 813 | . 117 . . . 288 72 . . 90 246 Effects 2 | . . . . . . . . . . 2 Interference 2 | . . . . . . . . . . 2 Siege Activations . | . . . . . . . . . . . Martial Activations . | . . . . . . . . . . . Shielding Activations . | . . . . . . . . . . . Robots Disrupted 2 | . . . . . . . . . . 2 Combat Hostiles . | . . . . . . . . . . . Robots Corrupted 1 | . . . . . . . . . . 1 Combat Hostiles 1 | . . . . . . . . . . 1 Parts Fried 11 | . . . . . 1 2 . . . 8 Impact Corruptions . | . . . . . . . . . . . Robots Melted . | . . . . . . . . . . . Combat Hostiles . | . . . . . . . . . . . Parts Melted 1 | . 1 . . . . . . . . . Heat Transferred 1492 | . 999 . . . 200 . . . . 293 Parts Sabotaged . | . . . . . . . . . . . Parts Stolen . | . . . . . . . . . . . Parts Stripped . | . . . . . . . . . . . Power Chain Reactions 6 | . . . . . 3 . . . . 3 Alert | -11 -10 -10 -10 -9 -8 -7 -7 -7 -7 -7 ------- Run | Yrd Mat Min Exi Min Mat Fac Was Fac Gar Fac Maximum Alert Level 3 | . . . . . 1 . . . 2 3 Low Security (%) 53 | 100 100 100 . 100 77 100 100 100 10 . Level 1 18 | . . . . . 22 . . . 9 44 Level 2 15 | . . . . . . . . . 79 8 Level 3 12 | . . . . . . . . . . 47 Level 4 . | . . . . . . . . . . . Level 5 . | . . . . . . . . . . . High Security . | . . . . . . . . . . . Max Security . | . . . . . . . . . . . Peak Influence 919 | . 85 33 . 5 310 127 20 11 699 919 Initial 366 | . . 33 . . . 127 20 . 7 366 Average 265 | . 10 19 . . 104 87 6 2 465 595 Influence Increases 2833 | . 208 . . 5 666 122 . 21 742 1069 Destroy 0b10 Robot/C 1420 | . 120 . . . 340 40 . . 400 520 Destroy 0b10 Robot/NC 165 | . 10 . . . 15 25 . 5 . 110 Destroy Leader 262 | . 32 . . . 112 4 . . 20 94 Allied During Kill 17 | . . . . . 16 . . . . 1 Successful Hack 119 | . 16 . . 5 53 7 . 16 22 . Select Force Hacks 90 | . . . . . 60 . . . . 30 Disable Machine 300 | . 15 . . . 60 15 . . . 210 Anti-Garrison Action 250 | . . . . . . . . . 250 . Destroy Structure 105 | . . . . . 10 1 . . 50 44 Lose Combat Pursuer 105 | . 15 . . . . 30 . . . 60 Influence Decreases 1948 | . 123 82 3 5 386 343 59 11 53 883 Entered New Map 583 | . . 52 3 . . 153 39 . 3 333 Time Decay 1155 | . 113 30 . 5 346 190 20 11 . 440 Lost Part 150 | . 10 . . . . . . . 50 90 Lost Ally 60 | . . . . . 40 . . . . 20 Squads Dispatched 20 | . 1 . . . 9 1 . 1 . 8 Investigation 8 | . . . . . 5 . . 1 . 2 Extermination 3 | . . . . . . 1 . . . 2 Reinforcement 5 | . 1 . . . 1 . . . . 3 Assault 1 | . . . . . . . . . . 1 Garrison 3 | . . . . . 3 . . . . . Intercept . | . . . . . . . . . . . Searches Triggered . | . . . . . . . . . . . Construction Impeded 4 | . . . . . 1 . . . . 3 Haulers Reinforced . | . . . . . . . . . . . Active Scanning Responses . | . . . . . . . . . . . Cargo Convoy Interrupts 1 | . . . . . . . . . . 1 Stealth | -11 -10 -10 -10 -9 -8 -7 -7 -7 -7 -7 --------- Run | Yrd Mat Min Exi Min Mat Fac Was Fac Gar Fac Distress Signals 7 | . 3 . . . 1 . . 1 . 2 Communications Jammed . | . . . . . . . . . . . Distress Signals . | . . . . . . . . . . . Times Spotted 110 | . 12 . . . 19 8 5 5 21 40 Peak Tracking Total 14 | . 4 . . . 2 3 5 4 7 14 Tactical Retreats 5 | . 1 . . . . 1 . . . 3 Traps | -11 -10 -10 -10 -9 -8 -7 -7 -7 -7 -7 ------- Run | Yrd Mat Min Exi Min Mat Fac Was Fac Gar Fac Traps Triggered 8 | . 3 . . . . 1 . . 3 1 Indirectly 1 | . . . . . . . . . . 1 Trap Hack Attempts . | . . . . . . . . . . . Triggered . | . . . . . . . . . . . Disarmed . | . . . . . . . . . . . Reprogrammed . | . . . . . . . . . . . Reused . | . . . . . . . . . . . Traps Extracted . | . . . . . . . . . . . Installed . | . . . . . . . . . . . Triggered . | . . . . . . . . . . . Machines | -11 -10 -10 -10 -9 -8 -7 -7 -7 -7 -7 ---------- Run | Yrd Mat Min Exi Min Mat Fac Was Fac Gar Fac Machines Disabled 23 | . 1 . . . 4 1 . . 3 14 Max in Single Turn 4 | . 1 . . . 1 1 . . 1 4 Garrison Access 1 | . . . . . . 1 . . . . Garrison Relay 3 | . . . . . . . . . 3 . Machines Repaired . | . . . . . . . . . . . Machines Dismantled . | . . . . . . . . . . . Machines Sabotaged . | . . . . . . . . . . . Overloaded Fab Kills . | . . . . . . . . . . . Hacking | -11 -10 -10 -10 -9 -8 -7 -7 -7 -7 -7 --------- Run | Yrd Mat Min Exi Min Mat Fac Was Fac Gar Fac Machines Accessed 33 | . 4 . 2 2 11 5 . 2 3 4 Terminals 22 | . 4 . . 2 8 2 . 1 3 2 Fabricators . | . . . . . . . . . . . Repair Stations 2 | . . . . . . 1 . . . 1 Recycling Units 1 | . . . . . . 1 . . . . Scanalyzers 3 | . . . . . 2 . . . . 1 Garrison Access 3 | . . . . . 1 1 . 1 . . Total Hacks 98 | . 15 . 2 4 37 18 . 7 7 8 Successful 63 | . 11 . 2 1 24 14 . 5 3 3 Failed 35 | . 4 . . 3 13 4 . 2 4 5 Catastrophic 5 | . . . . . 2 . . . 2 1 Database Lockouts . | . . . . . . . . . . . Manual 49 | . 8 . 1 2 18 10 . 1 4 5 Terminals 76 | . 15 . . 4 29 12 . 5 7 4 Fabricators . | . . . . . . . . . . . Repair Stations 3 | . . . . . . 2 . . . 1 Recycling Units 3 | . . . . . . 3 . . . . Scanalyzers 9 | . . . . . 6 . . . . 3 Garrison Access 5 | . . . . . 2 1 . 2 . . Terminal Hacks 34 | . 8 . 2 1 12 4 . 3 3 1 Record 1 | . . . 1 . . . . . . . Part Schematic 1 | . . . . . . . . 1 . . Robot Analysis 1 | . . . . . 1 . . . . . Prototype ID Bank 2 | . . . . . . 1 . 1 . . Open Door 1 | . . . . . . . . . 1 . Branch Access Points 2 | . 1 . . . 1 . . . . . Emergency Access Points 3 | . 1 . . . 1 . . . 1 . Terminal Index 3 | . 1 . . . 1 1 . . . . Alert Level 5 | . 1 . . . 1 1 . 1 . 1 Locate Traps 6 | . 2 . . . 3 1 . . . . Dispatch Records 1 | . . . . . 1 . . . . . Patrol Status 1 | . . . . . 1 . . . . . Hauler Manifests 2 | . 1 . . . 1 . . . . . Zone Layout 3 | . 1 . . 1 1 . . . . . Security Stations 1 | . . . . . . . . . 1 . Proto ID Catalog 1 | . . . 1 . . . . . . . Fabricator Hacks . | . . . . . . . . . . . Repair Station Hacks 2 | . . . . . . 2 . . . . Scan Component 1 | . . . . . . 1 . . . . Repair 1 | . . . . . . 1 . . . . Recycling Unit Hacks 3 | . . . . . . 3 . . . . Process 1 | . . . . . . 1 . . . . Report Inventory 1 | . . . . . . 1 . . . . Retrieve Matter 1 | . . . . . . 1 . . . . Scanalyzer 4 | . . . . . 4 . . . . . Insert Component 2 | . . . . . 2 . . . . . Analyze 2 | . . . . . 2 . . . . . Garrison Access Hacks 2 | . . . . . . 1 . 1 . . Unlock Access 1 | . . . . . . . . 1 . . Seal Access 1 | . . . . . . 1 . . . . Unauthorized Hacks 18 | . 3 . . . 8 4 . 1 . 2 Terminals 12 | . 3 . . . 4 4 . 1 . . Track 1 | . . . . . . . . 1 . . Botnet 7 | . 3 . . . 3 1 . . . . Operators 2 | . . . . . 1 1 . . . . Skim 2 | . . . . . . 2 . . . . Fabricators . | . . . . . . . . . . . Repair Stations 1 | . . . . . . . . . . 1 Patch 1 | . . . . . . . . . . 1 Recycling Units . | . . . . . . . . . . . Scanalyzers 3 | . . . . . 2 . . . . 1 Extract 3 | . . . . . 2 . . . . 1 Garrison Access 2 | . . . . . 2 . . . . . Broadcast 1 | . . . . . 1 . . . . . Reprogram 1 | . . . . . 1 . . . . . Data Cores Recovered . | . . . . . . . . . . . Used . | . . . . . . . . . . . Hacking Detections 27 | . 4 . . 2 11 3 . 1 3 3 Full Trace Events 6 | . 1 . . . 2 . . 1 2 . Feedback Events . | . . . . . . . . . . . Feedback Blocked . | . . . . . . . . . . . Robot Schematics Acquired . | . . . . . . . . . . . Robots Built . | . . . . . . . . . . . Authchips . | . . . . . . . . . . . Time . | . . . . . . . . . . . Total Robot Build Rating . | . . . . . . . . . . . Part Schematics Acquired 13 | . . . . . 11 . . 1 . 1 Parts Built . | . . . . . . . . . . . Authchips . | . . . . . . . . . . . Time . | . . . . . . . . . . . Total Part Build Rating . | . . . . . . . . . . . Parts Repaired 1 | . . . . . . 1 . . . . Time 38 | . . . . . . 38 . . . . Parts Recycled . | . . . . . . . . . . . Recycled Matter 62 | . . . . . . 62 . . . . Retrieved Matter 62 | . . . . . . 62 . . . . Retrieved Components . | . . . . . . . . . . . Parts Scanalyzed 2 | . . . . . 2 . . . . . Part Schematics Acquired 2 | . . . . . 2 . . . . . Parts Damaged . | . . . . . . . . . . . Bothacking | -11 -10 -10 -10 -9 -8 -7 -7 -7 -7 -7 ------------ Run | Yrd Mat Min Exi Min Mat Fac Was Fac Gar Fac Used RIF Installer . | . . . . . . . . . . . Robots Hacked . | . . . . . . . . . . . Non-combat . | . . . . . . . . . . . Combat . | . . . . . . . . . . . Robot Hacks Applied . | . . . . . . . . . . . Relay Couplers Released 11 | . . . . . . . . . 11 . Machine Destruction 11 | . . . . . . . . . 11 . Fabnet Peak Effective % . | . . . . . . . . . . . Robots Rewired . | . . . . . . . . . . . Allies Hacked . | . . . . . . . . . . . Hacks Repelled . | . . . . . . . . . . . Allies | -11 -10 -10 -10 -9 -8 -7 -7 -7 -7 -7 -------- Run | Yrd Mat Min Exi Min Mat Fac Was Fac Gar Fac Total Allies 6 | . . 2 . . 3 . . . 1 . Largest Group 3 | . . 2 1 . 3 . . . 1 1 Highest-Rated Group 48 | . . 41 31 . 48 . . . 39 39 Highest-Rated Ally 39 | . . 31 31 . 16 . . . 39 39 Initial Warlord ECA Mod 3 | . . . . . . . . . . 3 Total Orders . | . . . . . . . . . . . Ally Attacks 34 | . . . . . 28 . . . . 6 Total Damage 372 | . . . . . 335 . . . . 37 Kills 3 | . . . . . 3 . . . . . Allies Corrupted . | . . . . . . . . . . . Allies Melted . | . . . . . . . . . . . Intel | -11 -10 -10 -10 -9 -8 -7 -7 -7 -7 -7 ------- Run | Yrd Mat Min Exi Min Mat Fac Was Fac Gar Fac Active Infowar (turns) 464 | . . . . . . . 56 69 339 . Sensors 464 | . . . . . . . 56 69 339 . Robot Analysis Total 1 | . . . . . 1 . . . . . Derelict Logs Recovered . | . . . . . . . . . . . Drone Launches . | . . . . . . . . . . . Drone Recoveries . | . . . . . . . . . . . Exploration | -11 -10 -10 -10 -9 -8 -7 -7 -7 -7 -7 ------------- Run | Yrd Mat Min Exi Min Mat Fac Was Fac Gar Fac Turns Passed 4630 | 3 594 70 368 277 959 388 83 69 731 1088 Spaces Moved 2892 | 3 295 44 223 169 451 442 128 117 445 575 Core 24 | . . . . . . . . . 14 10 Treads 1673 | . 259 44 223 169 451 . . . 108 419 Legs 151 | 3 36 . . . . . . . 112 . Wheels 134 | . . . . . . . . . . 134 Hover 12 | . . . . . . . . . . 12 Flight 898 | . . . . . . 442 128 117 211 . Fastest Speed 50 | 120 120 160 160 160 160 50 50 50 50 50 Average Speed 123 | 120 155 160 160 160 160 50 50 50 113 146 Slowest Speed 350 | 120 240 160 160 160 240 50 50 50 350 160 Overloaded Moves . | . . . . . . . . . . . Propulsion Burnouts . | . . . . . . . . . . . Robots Hopped 17 | . . . . . . 13 2 2 . . Potential Cave-ins 2 | . . . . . . . . . . 2 Cave-ins Triggered 1 | . . . . . . . . . . 1 Exploration Rate (%) 34 | 2 53 14 61 41 34 14 72 6 60 22 Regions Visited 10 Branch Regions 3 Pre-discovered Areas 1 | . . . 1 . . . . . . . Known Exits Taken 2 | . 1 . . . . . . 1 . . Unknown Exits Taken 5 | 1 . 1 1 1 1 . . . . . Scrap Searched 2 | . . . . 2 . . . . . . Spaces Dug 6 | . . . . . . . . . . 6 Terrain Destroyed 58 | . . . . . 8 . . . 2 48 Melee 6 | . . . . . . . . . . 6 Projectile 19 | . . . . . . . . . 2 17 AOE 33 | . . . . . 8 . . . . 25 Terrain Rammed . | . . . . . . . . . . . Walls Destroyed . | . . . . . . . . . . . Machines Disabled . | . . . . . . . . . . . Actions | -11 -10 -10 -10 -9 -8 -7 -7 -7 -7 -7 --------- Run | Yrd Mat Min Exi Min Mat Fac Was Fac Gar Fac Total 3550 | 2 365 44 239 175 608 556 142 122 569 728 Wait 144 | . 3 1 . 3 71 47 14 1 . 4 Move 2853 | 2 294 43 222 168 450 419 124 113 443 575 Hop 13 | . . . . . . 10 1 2 . . Pick Up 70 | . 11 . 6 . 5 12 . 2 16 18 Fast Attach 39 | . 6 . . 1 6 1 2 2 9 12 Attach 22 | . 4 . 2 . 2 3 . . 2 9 Detach 12 | . 2 . 1 . 1 . . . 1 7 Swap 47 | . 3 . . . 11 13 1 1 8 10 Drop 73 | . 6 . 8 1 14 13 . . 20 11 Fire 220 | . 33 . . . 39 21 . 1 60 66 Melee 13 | . . . . . . . . . . 13 Ram . | . . . . . . . . . . . Kick 1 | . 1 . . . . . . . . . Crush 16 | . 2 . . 2 9 . . . . 3 Escape Stasis 10 | . . . . . . . . . 10 . Rewire 17 | . . . . . . 17 . . . . Trap . | . . . . . . . . . . . Miscellaneous . | . . . . . . . . . . . Route ------- -11/Scrapyard -10/Materials (discovered 3 exits: [*Mat] / *Min x2) -10/Mines -10/Exiles -9/Mines -8/Materials -7/Factory -7/Waste -7/Factory -7/Garrison (discovered 2 exits: *Fac x2) -7/Factory (discovered 1 exit: [*Fac]) History --------- Turn | Location | Event 1 | -11/Scrapyard | Discovered new exit (range 2) 4 | -11/Scrapyard | Entered Materials 311 | -10/Materials | Build established: Mutant 352 | -10/Materials | Discovered new exit (range 15) 562 | -10/Materials | Identified exit to Mines 598 | -10/Materials | Entered Mines 659 | -10/Mines | Deemed a non-threat by the Exiles lab entrance 659 | -10/Mines | Discovered new exit (range 5) 668 | -10/Mines | Entered Exiles 668 | -10/Exiles | Accompanied by 1 ally 698 | -10/Exiles | Led the pair of lost Derelicts to a safe place 719 | -10/Exiles | Met 8R-AWN 745 | -10/Exiles | Met EX-HEX 790 | -10/Exiles | Met EX-BIN 807 | -10/Exiles | Aligned with FarCom system 809 | -10/Exiles | Given EX-Vault access code 847 | -10/Exiles | Opened EX-Vault 862 | -10/Exiles | Found XL Autogun Array 866 | -10/Exiles | Found Superbattery 870 | -10/Exiles | Found Flying Fortress v7 903 | -10/Exiles | Warned to stay clear of 0b10 Research branches 922 | -10/Exiles | Exiles lab attacked by MAIN.C 969 | -10/Exiles | Learned location of Zion (-6) 1014 | -10/Exiles | Discovered new exit (range 14) 1036 | -10/Exiles | Stole three prototypes: Flying Fortress v7, Superbattery, XL Autogun Array 1036 | -10/Exiles | Entered Mines 1278 | -9/Mines | Discovered new exit (range 4) 1313 | -9/Mines | Entered Materials 1313 | -8/Materials | Evolved 4 slots: Propulsion x2, Utility x2 1847 | -8/Materials | Garrison activated, responded to threat 2217 | -8/Materials | Discovered new exit (range 14) 2272 | -8/Materials | Entered Factory 2272 | -7/Factory | Evolved 2 slots: Utility x2 2274 | -7/Factory | FarCom data flow suspended 2409 | -7/Factory | Discovered new exit (range 16) 2492 | -7/Factory | Repaired Imp. Heat Sink 2660 | -7/Factory | Manually triggered Chute Trap 2660 | -7/Factory | Sucked down chute 2660 | -7/Factory | Entered Waste 2665 | -7/Waste | Spotted C-40 Crusher 2673 | -7/Waste | Spotted C-40 Crusher 2679 | -7/Waste | Spotted C-40 Crusher 2679 | -7/Waste | Spotted C-40 Crusher 2679 | -7/Waste | Spotted C-40 Crusher 2710 | -7/Waste | Spotted C-40 Crusher 2710 | -7/Waste | Crushed by Compactor (0 parts destroyed, 2 dropped) 2716 | -7/Waste | Crushed by Compactor (1 part destroyed, 1 dropped) 2722 | -7/Waste | Discovered new exit (range 15) 2743 | -7/Waste | Entered Factory 2812 | -7/Factory | Identified exit to Garrison 2812 | -7/Factory | Entered Garrison 2832 | -7/Garrison | Triggered checkpoint 2834 | -7/Garrison | Garrison Relay disabled 2871 | -7/Garrison | Learned Factory security intel 2938 | -7/Garrison | Destroyed 8 combat bots 2959 | -7/Garrison | Garrison Relay disabled 2983 | -7/Garrison | Discovered new exit (range 14) 2989 | -7/Garrison | Attempted to access garrison exit controls, blocked by remote lockdown 3051 | -7/Garrison | Lost 3 parts (1p1n1u) 3258 | -7/Garrison | Triggered checkpoint 3329 | -7/Garrison | Destroyed 7 combat bots 3365 | -7/Garrison | Build established: Scavenger-Mutant 3377 | -7/Garrison | Garrison Relay disabled 3424 | -7/Garrison | Discovered new exit (range 13) 3452 | -7/Garrison | Rescued a captive Derelict 3543 | -7/Garrison | Entered Factory 3543 | -7/Factory | Accompanied by 1 ally 3875 | -7/Factory | Core integrity fell below 50% 4151 | -7/Factory | Lost 4 parts (1p1n2u) 4186 | -7/Factory | Cargo convoy interrupted 4226 | -7/Factory | Core integrity fell below 20% 4245 | -7/Factory | Destroyed 9 combat bots 4247 | -7/Factory | Lost 5 parts (3n2u) 4257 | -7/Factory | Found Prototype Processor 4257 | -7/Factory | Identified Exp. Melee Analysis Suite 4259 | -7/Factory | Found Exp. Melee Analysis Suite 4343 | -7/Factory | First assault squad dispatched 4599 | -7/Factory | Discovered new exit (range 14) 4632 | -7/Factory | Crushed by falling debris 4632 | -7/Factory | Smashed by cave-in Last Messages --------------- 04424_ Discarded Target Analyzer. 04424_ Acquired Adv. Targeting Computer. 04432_ Connecting with Repair Station... 04442_ System corrupted: Heat flow error (+162). 04460_ Acquired Arm. Huge Wheel. 04510_ 040YOEL9NZ0>EXTSVH7 04539_ Connecting with Terminal... 04547_ Dropped Corrupted Imp. Deuterium Engine. 04564_ ALERT: Potential suspicious activity detected, Programmers report to Factory Zone 6N. 04586_ Connecting with Terminal... >>Alert(Check) Current Alert Level: 3-J 04599_ EXIT=FOUND 04603_ R-06 Scavenger destroyed. 04603_ U-05 Engineer works on Manufacturing Mainframe. 04613_ P-60 Hacker destroyed. 04624_ U-05 Engineer builds a Wall. 04632_ The unstable cave ceiling collapses. 04632_ Crushed by falling debris. Map ----- +----------------------------------------------------+ | ?????????????????????????????????????????????????? | | ?????????????????????????????????????????????????? | | ?????????????????????????????????????????????????? | | ?????????????????????????????????????????????????? | | ?????????????????????????????????????????????????? | | ?????????????????????????????????????????????????? | | ?????????????????????????????????????????????????? | | ?????????????????????????????????????????????????? | | ?????????????????????????????????????????????????? | | ?????????????????????????????????????????????????? | | ?????????????????????????????????????????????????? | | ???????????????????????????????????##########????? | | ???????????????????????????????????# #??### | | ???????????????????????????????????# """ #? | | ???????????????????????????????????# """ ]#[ | | ???????????????????????????????????# """ # | | ???????????????????????????????????# # | | ???????????????????????????????????# # """ | | ???????????????????????????????????# "T" # """ | | ???????????????????????????????????# """ # """ | | ???????????????????????????????????# #?? | | ????????????????????????????????########+########+ | | ??????????????????# ????######### | | ??????????????????# < H = | | ??????????????????# ######### =% | | ??????????????????# ;@ #######/############# | | ??????????????????## #### #[! #?????# | | ??????????????????????????###!%"""" """" #?????# | | ???????????????????????????##|="""" """" ??????# | | ????????????????????????????# """" """" #?????+ | | ????????????????????????????# """" """"???????# | | ????????????????????????????# ????????# | | ????????????????????????????# """" "" ????????# | | ????????????????????????????# """" "" ???????# | | ????????????????????????????+ """" " ???????# | | ????????????????????????????# """" ????????# | | ????????????????????????????# ?? ? ???????## | | ????????????????????????????# ??? ?????????# | | ??????????????????????H?????#####?????????????# | | ??????????????????????????????????????????????# | | ??????????????????????????????????????????????# | | ??????????????????????????????????????????????# | | ??????????????????????????????????????????????# | | ??????????????????????????????????????????????# | | ??????????????????????????????????????????????# | | ??????????????????????????????????????########## | | ????????????????????????????????????? | | ?????????????????????????????????????? | | ?????????????????????????????????????????????### | | ???????????????????????????????????????????????# | +----------------------------------------------------+ Best States ------------- Heat Dissipation 48 Energy Generation 25 Energy Capacity 340 Matter Stores 300 Matter Capacity 300 Sight Range 16 Robot Scan Range 15 Terrain Scan Density 10 Armor Coverage 225 Propulsion Shielding 66 Utility Shielding 66 Weapon Shielding 66 Weapon Cycling 15 Evasion (%) 60 Targeting Accuracy 13 Melee Accuracy 24 Target Analysis 5 Recoil Reduction 4 Matter Filtering 30 Kinecelleration 30 Offensive Hacking 20 Item Schematics ----------------- Hacking Suite | -8/Materials | Scanalyzed Imp. VTOL Module | -8/Materials | Extracted Beam Rifle | -8/Materials | Extracted Imp. Terrain Scan Processor | -8/Materials | Extracted Imp. Treads | -8/Materials | Extracted Med. Storage Unit | -8/Materials | Extracted Machine Analyzer | -8/Materials | Extracted Imp. Heat Sink | -8/Materials | Extracted Rnf. Deuterium Engine | -8/Materials | Scanalyzed Hvy. Armor Plating | -8/Materials | Extracted Arm. Wheel | -8/Materials | Extracted Thermic Laser | -7/Factory | Hacked Kinecellerator | -7/Factory | Extracted Robot Schematics ------------------ None Fabricated ------------ Nothing Repaired ---------- Imp. Heat Sink | 20% | -7/Factory Alien Tech Used ----------------- None Achievements -------------- None Challenges ------------ None Game ------ Seed LargeArcsightSuperbattery Manual? 0 Play Time 00:36:52 Cumulative 1174.0 hours Start 2025.08.22 @ 13:06:41 End 2025.08.23 @ 12:49:43 Sessions 2 Manual Loads 0 Difficulty Rogue Special Mode None Game No. 1441 Rogue 1157 Adventurer 124 Explorer 160 Win Type - Total 53 Types 39/0/8/4/1/0/0/1/0/0 Lore% 92 Gallery% 88 Achievement% 81 Wizard Run 0 Options --------- Layout 0 ASCII 0 Keyboard 1 Movement Numpad Keybinds 0 Fullscreen 2 Font 18/X11 Map View 76x50 Zoom Use 0% Tactical HUD 1 Map Filters NONE Filters NONE Steam 1 RUN: 9cbfd5ef-9168-4f8b-b695-064866b0c953